Workbook

Sheet Лист1
A1: Школа | C1: МБОУ СОШ с.Юрматы | F1: Утвердил: | G1: должность | H1: директор
A2: Типовое примерное меню приготавливаемых блюд | G2: фамилия | H2: Тимербулатова Р.Г.
A3: Возрастная категория | E3: 1-4 классы | G3: дата | H3: 2026-01-01
A5: Неделя | B5: День недели | C5: Прием пищи | D5: Раздел меню | E5: Блюда | F5: Вес блюда, г | G5: Белки | H5: Жиры | I5: Углеводы | J5: Калорийность | K5: № рецептуры | L5: Цена
A6: 1 | B6: 1 | C6: Завтрак | D6: гор.блюдо | E6: Каша манная молочная | F6: 185.00 | G6: 10.30 | H6: 10.20 | I6: 20.50 | J6: 234.00 | L6: 71.09
D7: гор.напиток | E7: Кофейный напиток | F7: 200.00 | G7: 2.90 | H7: 2.80 | I7: 14.90 | J7: 94.00
D8: хлеб | E8: Хлеб с сыром | F8: 50.00 | G8: 5.67 | H8: 2.98 | I8: 19.68 | J8: 129.00
D9: фрукты | E9: Яблоко | F9: 150.00 | G9: 0.60 | H9: 0.60 | I9: 14.70 | J9: 70.00
D12: итого | F12: =SUM(F6:F9) -> 585.00 | G12: =SUM(G6:G9) -> 19.47 | H12: 16.58 | I12: 69.78 | J12: 527.00
A13: =A6 -> 1 | B13: =B6 -> 1 | C13: Обед | D13: закуска
D14: 1 блюдо
D15: 2 блюдо
D16: гарнир
D17: напиток
D18: хлеб бел.
D19: хлеб черн.
D22: итого
A23: =A6 -> 1 | B23: =B6 -> 1 | C23: Итого за день:
A24: 1 | B24: 2 | C24: Завтрак | D24: гор.блюдо | E24: Макаронные изделия с мясной котлетой | F24: 265.00 | G24: 20.40 | H24: 17.10 | I24: 51.10 | J24: 435.00 | L24: 71.09
D25: гор.напиток | E25: Компот из сухофруктов | F25: 200.00 | G25: 1.00 | H25: 0.05 | I25: 27.50 | J25: 110.00
D26: хлеб | E26: Хлеб | F26: 40.00 | G26: 3.04 | H26: 0.32 | I26: 19.68 | J26: 94.00
D27: фрукты | E27: Мандарин | F27: 100.00 | G27: 0.40 | H27: 0.40 | I27: 9.80 | J27: 47.00
D28: булочное
D30: итого | F30: =SUM(F24:F27) -> 605.00 | G30: =SUM(G24:G27) -> 24.84 | H30: 17.87 | I30: 108.08 | J30: 686.00
A31: =A24 -> 1 | B31: =B24 -> 2 | C31: Обед | D31: закуска
D32: 1 блюдо
D33: 2 блюдо
D34: гарнир
D35: напиток
D36: хлеб бел.
D37: хлеб черн.
D40: итого
A41: =A24 -> 1 | B41: =B24 -> 2 | C41: Итого за день:
A42: 1 | B42: 3 | C42: Завтрак | D42: гор.блюдо | E42: Каша рисовая рассыпчатая с рыбой тушеной с овощами | F42: 295.00 | G42: 20.50 | H42: 19.80 | I42: 46.80 | J42: 398.00 | L42: 71.09
D43: гор.напиток | E43: Чай с сахаром | F43: 200.00 | G43: 0.18 | H43: 0.02 | I43: 11.30 | J43: 39.00
D44: хлеб | E44: Хлеб | F44: 40.00 | G44: 3.04 | H44: 0.32 | I44: 19.68 | J44: 94.00
D45: фрукты
D48: итого | F48: =SUM(F42:F44) -> 535.00 | G48: =SUM(G42:G44) -> 23.72 | H48: 20.14 | I48: 77.78 | J48: 531.00
A49: =A42 -> 1 | B49: =B42 -> 3 | C49: Обед | D49: закуска
D50: 1 блюдо
D51: 2 блюдо
D52: гарнир
D53: напиток
D54: хлеб бел.
D55: хлеб черн.
D58: итого
A59: =A42 -> 1 | B59: =B42 -> 3 | C59: Итого за день:
A60: 1 | B60: 4 | C60: Завтрак | D60: гор.блюдо | E60: Картофельное пюре с куриным филе с овощами | F60: 200.00 | G60: 28.85 | H60: 34.43 | I60: 46.97 | J60: 321.00 | L60: 71.09
D61: гор.напиток | E61: Чай с сахаром и молоком | F61: 200.00 | G61: 0.10 | H61: 0.03 | I61: 9.90 | J61: 35.00
D62: хлеб | E62: Хлеб | F62: 40.00 | G62: 3.04 | H62: 0.32 | I62: 19.60 | J62: 94.00
D63: фрукты | E63: Апельсин | F63: 100.00 | G63: 0.40 | H63: 0.40 | I63: 9.80 | J63: 47.00
D64: булочное
D66: итого | F66: =SUM(F60:F63) -> 540.00 | G66: =SUM(G60:G63) -> 32.39 | H66: 35.18 | I66: 86.27 | J66: 497.00
A67: =A60 -> 1 | B67: =B60 -> 4 | C67: Обед | D67: закуска
D68: 1 блюдо
D69: 2 блюдо
D70: гарнир
D71: напиток
D72: хлеб бел.
D73: хлеб черн.
D76: итого
A77: =A60 -> 1 | B77: =B60 -> 4 | C77: Итого за день:
A78: 1 | B78: 5 | C78: Завтрак | D78: гор.блюдо | E78: Плов из курицы с салатом из капусты | F78: 260.00 | G78: 17.88 | H78: 21.18 | I78: 37.78 | J78: 467.00 | L78: 71.09
D79: гор.напиток | E79: Кисель | F79: 200.00 | G79: 0.00 | H79: 0.00 | I79: 20.00 | J79: 76.00
D80: хлеб | E80: Хлеб | F80: 40.00 | G80: 3.04 | H80: 0.32 | I80: 19.68 | J80: 94.00
D81: фрукты
D82: закуска
D84: итого | F84: =SUM(F78:F83) -> 500.00 | G84: =SUM(G78:G83) -> 20.92 | H84: 21.50 | I84: 77.46 | J84: 637.00
A85: =A78 -> 1 | B85: =B78 -> 5 | C85: Обед | D85: закуска
D86: 1 блюдо
D87: 2 блюдо
D88: гарнир
D89: напиток
D90: хлеб бел.
D91: хлеб черн.
D92: булочное
D94: итого
A95: =A78 -> 1 | B95: =B78 -> 5 | C95: Итого за день:
A96: 2 | B96: 1 | C96: Завтрак | D96: гор.блюдо | E96: Каша "Дружба" | F96: 185.00 | G96: 6.70 | H96: 9.00 | I96: 30.60 | J96: 207.00 | L96: 71.09
D97: гор.напиток | E97: Какао с молоком | F97: 200.00 | G97: 4.40 | H97: 4.50 | I97: 13.70 | J97: 188.00
D98: хлеб | E98: Хлеб с сыром | F98: 50.00 | G98: 6.67 | H98: 3.98 | I98: 19.68 | J98: 129.00
D99: фрукты | E99: Мандарин | F99: 100.00 | G99: 0.40 | H99: 0.40 | I99: 9.80 | J99: 47.00
D102: итого | F102: =SUM(F96:F101) -> 535.00 | G102: =SUM(G96:G101) -> 18.17 | H102: 17.88 | I102: 73.78 | J102: 571.00
A103: =A96 -> 2 | B103: =B96 -> 1 | C103: Обед | D103: закуска
D104: 1 блюдо
D105: 2 блюдо
D106: гарнир
D107: напиток
D108: хлеб бел.
D109: хлеб черн.
D112: итого
A113: =A96 -> 2 | B113: =B96 -> 1 | C113: Итого за день:
A114: 2 | B114: 2 | C114: Завтрак | D114: гор.блюдо | E114: Каша гречневая рассыпчатая | F114: 185.00 | G114: 10.84 | H114: 10.45 | I114: 44.30 | J114: 197.00 | L114: 71.09
D115: гор.напиток | E115: Чай с сахаром и лимоном | F115: 200.00 | G115: 0.18 | H115: 0.02 | I115: 11.30 | J115: 39.00
D116: хлеб | E116: Бутерброд с повидлом | F116: 50.00 | G116: 2.40 | H116: 7.50 | I116: 16.90 | J116: 222.00
D117: фрукты | E117: Йогурт | F117: 100.00 | G117: 3.30 | H117: 4.20 | I117: 8.00 | J117: 78.00
D118: булочное
D120: итого | F120: =SUM(F114:F119) -> 535.00 | G120: =SUM(G114:G119) -> 16.72 | H120: 22.17 | I120: 80.50 | J120: 536.00
A121: =A114 -> 2 | B121: =B114 -> 2 | C121: Обед | D121: закуска
D122: 1 блюдо
D123: 2 блюдо
D124: гарнир
D125: напиток
D126: хлеб бел.
D127: хлеб черн.
D130: итого
A131: =A114 -> 2 | B131: =B114 -> 2 | C131: Итого за день:
A132: 2 | B132: 3 | C132: Завтрак | D132: гор.блюдо | E132: Картофельное пюре с мясной котлетой | F132: 230.00 | G132: 31.30 | H132: 30.90 | I132: 56.20 | J132: 336.00 | L132: 71.09
D133: гор.напиток | E133: Чай с сахаром и лимоном | F133: 200.00 | G133: 0.18 | H133: 0.02 | I133: 11.30 | J133: 39.00
D134: хлеб | E134: Хлеб | F134: 40.00 | G134: 3.04 | H134: 0.32 | I134: 19.68 | J134: 94.00
D135: фрукты
D138: итого | F138: =SUM(F132:F137) -> 470.00 | G138: =SUM(G132:G137) -> 34.52 | H138: 31.24 | I138: 87.18 | J138: 469.00
A139: =A132 -> 2 | B139: =B132 -> 3 | C139: Обед | D139: закуска
D140: 1 блюдо
D141: 2 блюдо
D142: гарнир
D143: напиток
D144: хлеб бел.
D145: хлеб черн.
D148: итого
A149: =A132 -> 2 | B149: =B132 -> 3 | C149: Итого за день:
A150: 2 | B150: 4 | C150: Завтрак | D150: гор.блюдо | E150: Каша "Артек" | F150: 185.00 | G150: 7.20 | H150: 7.20 | I150: 36.80 | J150: 242.00 | L150: 71.09
D151: гор.напиток | E151: Какао с молоком | F151: 200.00 | G151: 4.40 | H151: 4.50 | I151: 13.70 | J151: 188.00
D152: хлеб | E152: Хлеб с сыром | F152: 50.00 | G152: 5.67 | H152: 2.98 | I152: 19.68 | J152: 129.00
D153: фрукты | E153: Йогурт | F153: 100.00 | G153: 3.30 | H153: 4.20 | I153: 8.00 | J153: 78.00
D156: итого | F156: =SUM(F150:F155) -> 535.00 | G156: =SUM(G150:G155) -> 20.57 | H156: 18.88 | I156: 78.18 | J156: 637.00
A157: =A150 -> 2 | B157: =B150 -> 4 | C157: Обед | D157: закуска
D158: 1 блюдо
D159: 2 блюдо
D160: гарнир
D161: напиток
D162: хлеб бел.
D163: хлеб черн.
D166: итого
A167: =A150 -> 2 | B167: =B150 -> 4 | C167: Итого за день:
A168: 2 | B168: 5 | C168: Завтрак | D168: гор.блюдо | E168: Гороховое пюре с котлетами из курицы | F168: 265.00 | G168: 18.99 | H168: 16.51 | I168: 58.30 | J168: 533.00 | L168: 71.09
D169: гор.напиток | E169: Чай | F169: 200.00 | G169: 0.18 | H169: 0.02 | I169: 11.30 | J169: 39.00
D170: хлеб | E170: Хлеб | F170: 40.00 | G170: 9.04 | H170: 0.32 | I170: 19.60 | J170: 94.00
D171: фрукты
D172: булочное
D174: итого | F174: =SUM(F168:F173) -> 505.00 | G174: =SUM(G168:G173) -> 28.21 | H174: 16.85 | I174: 89.20 | J174: 666.00
A175: =A168 -> 2 | B175: =B168 -> 5 | C175: Обед | D175: закуска
D176: 1 блюдо
D177: 2 блюдо
D178: гарнир
D179: напиток
D180: хлеб бел.
D181: хлеб черн.
D184: итого
A185: =A168 -> 2 | B185: =B168 -> 5 | C185: Итого за день:
